bitfinex/quotes_SOLUSD_20260208
["timestamp","ask_amount","ask_price","bid_price","bid_amount"]
[1770581148052,1.07223405,87.669,87.622,1.02433218]
[1770581148053,1.07223405,87.668,87.64,10.74507577]
[1770581148682,28.51379068,87.677,87.64,10.74507577]
[1770581148683,1.07223405,87.666,87.64,10.74507577]
[1770581149083,1.07223405,87.659,87.62,10.74507577]
[1770581150058,1.07223405,87.659,87.63,10.74507577]
[1770581150254,1.07223405,87.659,87.631,1.02933716]
[1770581150459,1.07223405,87.666,87.64,10.74507577]
[1770581150773,0.2,87.67,87.64,10.74507577]
[1770581150774,1.07223405,87.664,87.64,10.74507577]
[1770581150974,1.07223405,87.664,87.65,10.74507577]
[1770581151170,0.2,87.67,87.65,10.74507577]
[1770581151379,11.40654051,87.669,87.65,10.74507577]
[1770581151986,0.2,87.67,87.65,10.74507577]
[1770581152282,0.2,87.67,87.66,10.74507577]
[1770581152962,11.40654051,87.669,87.65,10.74507577]
[1770581153372,0.2,87.67,87.65,10.74507577]
[1770581153975,0.2,87.67,87.66,10.74507577]
[1770581154173,0.2,87.68,87.67,10.74507577]
[1770581155277,0.2,87.68,87.66,10.74507577]
[1770581155278,11.40523956,87.679,87.66,10.74507577]
[1770581155477,1.27223405,87.68,87.66,10.74507577]
[1770581156880,1.07223405,87.699,87.67,10.74507577]
[1770581157086,11.40276859,87.698,87.67,10.74507577]
[1770581157387,1.07223405,87.697,87.67,10.74507577]
[1770581158381,1.07223405,87.695,87.67,10.74507577]
[1770581158766,1.07223405,87.695,87.66,10.74507577]
[1770581159186,1.07223405,87.695,87.67,10.74507577]
[1770581159681,11.40302864,87.696,87.67,10.74507577]
[1770581159887,1.07223405,87.695,87.67,10.74507577]
[1770581160270,1.07223405,87.693,87.67,10.74507577]
[1770581160774,10.74507577,87.69,87.65,10.74507577]
[1770581160982,1.07223405,87.689,87.65,10.74507577]
[1770581161380,1.07223405,87.679,87.64,10.74507577]
[1770581162367,1.07223405,87.677,87.64,10.74507577]
[1770581162778,1.07223405,87.677,87.65,10.74507577]
[1770581163174,1.07223405,87.677,87.64,10.74507577]
[1770581163375,1.07223405,87.677,87.641,0.67596733]
[1770581163996,11.40367592,87.692,87.661,0.67822298]
[1770581164169,1.07223405,87.705,87.68,10.74507577]
[1770581164363,11.4019885,87.704,87.69,10.74507577]
[1770581165190,7.14515839,87.707,87.69,10.74507577]
[1770581165493,7.14515839,87.707,87.7,10.74507577]
[1770581165676,11.40060094,87.715,87.7,10.74507577]
[1770581165992,0.2,87.72,87.71,10.74507577]
[1770581166388,11.40003876,87.719,87.71,10.74507577]
[1770581166986,0.2,87.72,87.71,10.74507577]
[1770581167169,11.39864676,87.73,87.71,10.74507577]
[1770581167370,11.39864676,87.73,87.72,10.74507577]
[1770581167571,1.07223405,87.739,87.72,10.74507577]
[1770581167772,11.39732433,87.74,87.73,10.74507577]
[1770581168168,11.39627114,87.748,87.73,10.74507577]
[1770581168594,1.07223405,87.747,87.72,10.74507577]
[1770581168895,1.07223405,87.747,87.72,10.70548093]
[1770581169223,1.07223405,87.747,87.73,10.70548093]
[1770581169489,11.39627114,87.748,87.73,10.70548093]
[1770581169695,1.07223405,87.754,87.74,10.70548093]
[1770581169996,11.3947118,87.761,87.74,10.70548093]
[1770581170186,11.3947118,87.761,87.712,28.50232646]
[1770581170187,1.07223405,87.76,87.73,10.70548093]
[1770581170391,1.07223405,87.758,87.72,10.70548093]
[1770581170983,1.07223405,87.758,87.697,0.49330355]
[1770581170984,1.07223405,87.758,87.71,10.70548093]
[1770581171195,39.88194942,87.759,87.682,0.49330355]
[1770581171196,1.07223405,87.749,87.682,0.49330355]
[1770581171380,1.07223405,87.739,87.69,10.70548093]
[1770581171580,10.70548093,87.73,87.69,10.70548093]
[1770581171895,1.07223405,87.729,87.7,10.70548093]
[1770581172492,11.39886923,87.728,87.7,10.70548093]
[1770581172701,1.07223405,87.727,87.7,10.70548093]
[1770581173390,1.07223405,87.737,87.71,10.70548093]
[1770581174703,1.07223405,87.729,87.669,0.49865898]
[1770581174996,1.07223405,87.729,87.71,10.70548093]
[1770581175494,1.07223405,87.729,87.7,10.70548093]
[1770581176706,39.89240448,87.736,87.7,10.70548093]
[1770581176707,1.10337003,87.727,87.7,10.70548093]
[1770581176901,1.10337003,87.727,87.7,3.99838221]
[1770581177603,1.10337003,87.727,87.671,28.5154518]
[1770581177604,1.10337003,87.709,87.66,3.99838221]
[1770581177808,1.10337003,87.689,87.637,0.50811043]
[1770581178095,3.99838221,87.72,87.64,3.99838221]
[1770581178096,1.10337003,87.679,87.64,3.99838221]
[1770581178304,1.10337003,87.669,87.63,3.99838221]
[1770581178687,1.10337003,87.667,87.64,3.99838221]
[1770581178894,1.10337003,87.667,87.64,10.72490287]
[1770581179210,1.10337003,87.667,87.63,10.72490287]
[1770581179585,1.10337003,87.667,87.631,11.92110975]
[1770581179996,1.10337003,87.667,87.64,10.72490287]
[1770581180307,11.40544855,87.678,87.641,0.5111181]
[1770581180511,1.10337003,87.698,87.639,0.5111181]
[1770581180714,1.10337003,87.698,87.66,10.72490287]
[1770581180893,1.10337003,87.696,87.66,10.72490287]
[1770581181505,1.10337003,87.689,87.65,10.72490287]
[1770581181703,1.10337003,87.689,87.66,10.72490287]
[1770581181901,1.10337003,87.689,87.67,10.72490287]
[1770581182108,1.10337003,87.689,87.66,10.72490287]
[1770581182490,1.10337003,87.689,87.648,11.40919071]
[1770581182693,1.10337003,87.689,87.66,10.72490287]
[1770581183218,56.99958316,87.72,87.612,0.51550131]
[1770581183219,1.10337003,87.679,87.612,0.51550131]
[1770581183402,1.10337003,87.649,87.61,10.72490287]
[1770581184533,1.10337003,87.649,87.62,10.72490287]
[1770581184818,1.10337003,87.639,87.6,10.72490287]
[1770581185014,1.10337003,87.639,87.587,11.41721079]
[1770581185209,1.10337003,87.627,87.59,10.72490287]
[1770581185519,1.10337003,87.627,87.6,10.72490287]
[1770581185715,11.41187748,87.628,87.559,0.51834018]
[1770581185716,1.10337003,87.609,87.559,0.51834018]
[1770581185921,1.10337003,87.609,87.57,10.72490287]
[1770581186919,1.10337003,87.609,87.58,10.72490287]
[1770581187416,1.10337003,87.609,87.57,11.24601707]
[1770581187417,11.41448269,87.608,87.57,11.24601707]
[1770581187619,1.10337003,87.607,87.57,11.24601707]
[1770581188120,1.10337003,87.607,87.58,10.72490287]
[1770581188323,1.10337003,87.618,87.58,10.72490287]
[1770581189119,1.10337003,87.618,87.57,11.24601707]
[1770581189417,1.10337003,87.589,87.542,11.42299619]
[1770581189624,1.10337003,87.579,87.54,10.72490287]
[1770581192422,11.41839274,87.578,87.54,10.72490287]
[1770581192620,1.10337003,87.577,87.54,10.72490287]
[1770581192823,11.41778186,87.583,87.55,10.82490287]
[1770581193019,1.10337003,87.582,87.55,10.82490287]
[1770581193227,1.10337003,87.579,87.55,0.1]
[1770581193423,1.10337003,87.579,87.55,10.82490287]
[1770581193723,1.10337003,87.588,87.551,0.52906189]
[1770581193918,1.10337003,87.586,87.55,10.82490287]
[1770581195920,1.10337003,87.596,87.561,0.53283386]
[1770581197304,1.10337003,87.594,87.561,0.53283386]
[1770581198620,1.10337003,87.622,87.581,0.53527686]
[1770581198817,1.10337003,87.622,87.59,10.72490287]
[1770581199018,1.10337003,87.609,87.57,11.26138022]
[1770581199327,1.10337003,87.609,87.571,0.53647735]
[1770581199625,1.10337003,87.618,87.58,10.72490287]
[1770581200017,1.10337003,87.618,87.579,0.53647735]
[1770581200018,1.10337003,87.618,87.59,10.72490287]
[1770581200219,1.10337003,87.619,87.579,0.53647735]
[1770581200411,1.10337003,87.619,87.55,28.65503209]
[1770581200412,1.1505735,87.589,87.55,10.82490287]
[1770581201336,39.94612979,87.618,87.55,0.1]
[1770581201337,1.1505735,87.579,87.55,0.1]
[1770581202732,1.1505735,87.577,87.55,0.1]
[1770581204934,1.1505735,87.577,87.551,11.42191408]
[1770581205521,11.41781294,87.583,87.56,10.72490287]
[1770581205916,11.41781294,87.583,87.55,0.1]
[1770581205917,1.1505735,87.579,87.55,0.1]
[1770581206810,1.1505735,87.577,87.55,0.1]
[1770581207010,11.41839274,87.578,87.55,10.82490287]
[1770581207209,11.41839274,87.578,87.55,0.1]
[1770581207210,1.1505735,87.577,87.55,0.1]
[1770581207641,1.1505735,87.577,87.55,10.82490287]
[1770581207821,1.1505735,87.585,87.55,0.1]
[1770581208131,1.1505735,87.598,87.56,10.72490287]
[1770581209131,1.1505735,87.596,87.56,10.72490287]
[1770581209343,11.413701,87.614,87.59,10.72490287]
[1770581209531,1.1505735,87.613,87.561,11.42060963]
[1770581209722,1.1505735,87.599,87.56,10.72490287]
[1770581210039,1.1505735,87.599,87.57,10.72490287]
[1770581211934,1.1505735,87.597,87.55,0.1]
[1770581212134,1.1505735,87.597,87.56,10.72490287]
[1770581212452,1.1505735,87.589,87.55,10.82490287]
[1770581212921,30.0,87.587,87.56,10.72490287]
[1770581213122,1.1505735,87.586,87.56,10.72490287]
[1770581213328,1.1505735,87.586,87.55,10.82490287]
[1770581213944,30.0,87.585,87.55,10.82490287]
[1770581214144,30.0,87.585,87.56,10.72490287]
[1770581215134,1.1505735,87.583,87.55,0.1]
[1770581215335,30.0,87.582,87.547,11.42230947]
[1770581215539,1.1505735,87.581,87.547,11.42230947]
[1770581215846,1.1505735,87.581,87.55,10.72490287]
[1770581216441,30.0,87.579,87.55,10.72490287]
[1770581216624,30.0,87.579,87.551,11.42183594]
[1770581216938,30.0,87.579,87.56,10.72490287]
[1770581217545,30.0,87.579,87.561,11.42060963]
[1770581218019,30.0,87.579,87.57,10.72490287]
[1770581218443,11.41633438,87.594,87.57,10.72490287]
[1770581218631,1.1505735,87.593,87.561,11.42060963]
[1770581218831,1.1505735,87.593,87.56,10.72490287]
[1770581219243,1.1505735,87.593,87.56,22.14561313]
[1770581220444,1.1505735,87.591,87.57,10.72490287]
[1770581220824,1.1505735,87.607,87.58,10.72490287]
[1770581221027,1.1505735,87.607,87.59,10.72490287]
[1770581221341,29.45576932,87.591,87.59,10.72490287]
[1770581221528,29.45576932,87.591,87.58,10.72490287]
[1770581221929,11.41391749,87.613,87.58,10.72490287]
[1770581222136,11.41391749,87.613,87.59,10.72490287]
[1770581222526,11.41391749,87.613,87.546,39.97898247]
[1770581222527,28.52878251,87.631,87.6,10.72490287]
[1770581223145,1.14457956,87.63,87.6,10.72490287]
[1770581223535,1.14457956,87.63,87.546,97.09181458]
[1770581223536,1.14457956,87.638,87.61,10.72490287]
[1770581224443,1.14457956,87.636,87.62,10.72490287]
[1770581225434,1.14457956,87.654,87.63,10.72490287]
[1770581225635,1.14457956,87.654,87.64,10.72490287]
[1770581225849,1.14457956,87.654,87.63,10.72490287]
[1770581227038,1.14457956,87.652,87.63,10.72490287]
[1770581228946,1.14457956,87.652,87.64,10.72490287]
[1770581229261,1.14457956,87.65,87.63,10.72490287]
[1770581230133,1.14457956,87.65,87.62,10.72490287]
[1770581231052,1.14457956,87.65,87.62,10.72864758]
[1770581232045,1.14457956,87.648,87.63,10.72864758]
[1770581233448,0.2,87.74,87.64,10.72864758]
[1770581233633,1.14457956,87.689,87.602,17.4]
[1770581233833,1.14457956,87.689,87.64,10.72864758]
[1770581234351,1.14457956,87.687,87.66,10.72864758]
[1770581235353,1.14457956,87.669,87.62,10.72864758]
[1770581236139,1.14457956,87.667,87.62,10.72864758]
[1770581236453,30.0,87.658,87.62,10.72864758]
[1770581236650,1.14457956,87.639,87.6,10.72864758]
[1770581237556,1.14457956,87.639,87.61,10.72864758]
[1770581238055,1.14457956,87.637,87.6,10.72864758]
[1770581238549,11.41083572,87.636,87.6,10.72864758]
[1770581238755,1.14457956,87.635,87.6,10.72864758]
[1770581240154,1.14457956,87.633,87.6,10.72864758]
[1770581241142,1.14457956,87.633,87.601,11.4153948]
[1770581241344,10.72864758,87.65,87.61,10.72864758]
[1770581241656,1.14457956,87.639,87.6,10.72864758]
[1770581242038,1.14457956,87.639,87.56,5.36086188]
[1770581242039,1.14457956,87.627,87.59,10.72864758]
[1770581242551,1.14457956,87.619,87.576,11.41856578]
[1770581242740,1.14457956,87.619,87.58,10.72864758]
[1770581244156,1.14457956,87.616,87.58,22.14670835]
[1770581244455,30.0,87.618,87.6,10.72864758]
[1770581244658,11.41264701,87.623,87.6,10.72864758]
[1770581245656,1.14457956,87.624,87.6,10.72864758]
[1770581245856,1.14457956,87.624,87.59,10.72864758]
[1770581248758,1.14457956,87.622,87.59,10.72864758]
[1770581249255,1.14457956,87.622,87.6,10.72864758]
[1770581250667,28.52611631,87.639,87.601,11.4153948]
[1770581250857,29.67069587,87.639,87.61,10.72864758]
[1770581251172,1.14457956,87.638,87.61,10.72864758]
[1770581253271,1.14457956,87.636,87.6,10.72864758]
[1770581254751,1.14457956,87.634,87.6,10.72864758]
[1770581255152,1.14457956,87.619,87.583,17.4]
[1770581255367,1.14457956,87.619,87.58,10.72864758]
[1770581257075,1.14457956,87.617,87.59,10.72864758]
[1770581257256,1.14457956,87.617,87.58,10.72864758]
[1770581258076,1.14457956,87.617,87.581,11.41800162]
[1770581258252,1.14457956,87.617,87.59,10.72864758]
[1770581259774,11.41344046,87.616,87.59,10.72864758]
[1770581261174,1.14457956,87.615,87.59,10.72864758]
[1770581261476,1.14457956,87.615,87.58,10.72864758]
[1770581262156,1.14457956,87.613,87.58,10.72864758]
[1770581265152,28.53360116,87.616,87.582,0.02336245]
[1770581265153,1.14457956,87.611,87.582,0.02336245]
[1770581265356,11.41396155,87.612,87.59,10.72864758]
[1770581267867,12.55788976,87.617,87.59,10.72864758]
[1770581268180,11.4133102,87.617,87.59,10.72864758]
[1770581268372,1.14457956,87.616,87.59,10.72864758]
[1770581270081,1.14457956,87.632,87.601,0.02595934]
[1770581270386,1.14457956,87.63,87.6,10.72864758]
[1770581271063,1.14457956,87.63,87.591,11.41669806]
[1770581271264,1.14457956,87.619,87.582,17.4]
[1770581271470,1.14457956,87.619,87.572,11.4190783]
[1770581272477,1.14457956,87.617,87.572,11.4190783]
[1770581272679,10.72864758,87.61,87.57,10.72864758]
[1770581272988,1.14457956,87.609,87.57,10.72864758]
[1770581273879,1.14457956,87.607,87.57,10.72864758]
[1770581274793,1.14457956,87.607,87.58,10.72864758]
[1770581274994,1.14457956,87.607,87.58,4.00940667]
[1770581276694,11.41474328,87.606,87.575,0.0279315]
[1770581276892,1.14457956,87.605,87.57,4.00940667]
[1770581277081,1.14457956,87.605,87.565,11.41999276]
[1770581277476,1.14457956,87.599,87.56,4.00940667]
[1770581278600,1.14457956,87.596,87.56,4.00940667]
[1770581280294,1.14457956,87.593,87.56,4.00940667]
[1770581281377,1.14457956,87.593,87.561,11.42060963]
[1770581281576,1.14457956,87.593,87.561,11.45178055]
[1770581282199,12.56114728,87.592,87.562,0.03161268]
[1770581282397,1.14457956,87.599,87.57,4.00940667]
[1770581285702,11.41578574,87.598,87.571,0.03290774]
[1770581287106,1.14457956,87.598,87.571,11.45221321]
[1770581290092,12.56043756,87.598,87.572,0.03496888]
[1770581290396,12.56043756,87.598,87.58,4.00940667]
[1770581291408,1.14457956,87.597,87.58,4.00940667]
[1770581292813,1.14457956,87.596,87.58,4.00940667]
[1770581293012,1.14457956,87.596,87.58,4.00963501]
[1770581293808,1.14457956,87.594,87.561,17.4]
[1770581294013,11.41617672,87.595,87.535,28.55992649]
[1770581294014,1.14457956,87.589,87.55,4.00963501]
[1770581294207,1.14457956,87.589,87.545,0.03653419]
[1770581294411,1.14457956,87.589,87.561,0.03653419]
[1770581295604,1.14457956,87.587,87.561,0.03653419]
[1770581296010,1.14457956,87.587,87.561,11.45714382]
[1770581296211,1.14457956,87.609,87.571,0.03802882]
[1770581297216,11.4143524,87.609,87.571,0.03802882]
[1770581297420,1.14457956,87.608,87.571,0.03802882]
[1770581299217,1.14457956,87.624,87.6,4.00963501]
[1770581299593,1.14457956,87.623,87.6,4.00963501]
[1770581300195,1.14457956,87.623,87.61,4.00963501]
[1770581301203,11.41179632,87.629,87.61,4.00963501]
[1770581301421,11.41179632,87.629,87.568,5.36086188]
[1770581301422,1.14457956,87.636,87.62,4.00963501]
[1770581302432,1.14457956,87.636,87.61,4.00963501]
[1770581302620,1.14457956,87.634,87.61,4.00963501]
[1770581303109,1.14457956,87.634,87.62,4.00963501]
[1770581305598,1.14457956,87.632,87.6,4.00963501]
[1770581305801,1.14457956,87.632,87.592,0.04114957]
[1770581306017,1.14457956,87.632,87.6,4.00963501]
[1770581307306,1.14457956,87.629,87.59,4.00963501]
[1770581308020,1.14457956,87.619,87.58,4.00963501]
[1770581308205,1.14457956,87.609,87.57,4.00963501]
[1770581308412,1.14457956,87.609,87.562,11.46250506]
[1770581308596,1.14457956,87.609,87.566,11.41992643]
[1770581308916,1.14457956,87.609,87.571,0.04243577]
[1770581309119,1.14457956,87.609,87.58,4.00963501]
[1770581310207,1.14457956,87.608,87.58,4.00963501]
[1770581311620,1.14457956,87.608,87.58,4.05269193]
[1770581313521,1.14457956,87.608,87.581,0.04366389]
[1770581314230,1.14457956,87.606,87.581,0.04366389]
[1770581315217,1.14457956,87.606,87.581,11.46166551]
[1770581316928,30.0,87.621,87.601,0.04483654]
[1770581317131,1.14457956,87.633,87.601,0.04483654]
[1770581317830,1.14457956,87.633,87.61,4.00963501]
[1770581318817,1.14457956,87.631,87.61,4.00963501]
[1770581319532,11.41135658,87.632,87.61,4.05503787]
[1770581320027,11.41135658,87.632,87.61,4.00963501]
[1770581320230,12.55593614,87.632,87.61,4.00963501]
[1770581320433,12.55593614,87.632,87.62,4.00963501]
[1770581320927,11.41135658,87.632,87.62,4.00963501]
[1770581321129,1.14457956,87.631,87.62,4.00963501]
[1770581322326,12.55613869,87.631,87.62,4.00963501]
[1770581322528,1.14457956,87.63,87.62,4.00963501]
[1770581323230,1.14457956,87.63,87.61,4.00963501]
[1770581324219,1.14457956,87.63,87.62,4.00963501]
[1770581325617,11.41155913,87.631,87.62,4.00963501]
[1770581325618,1.14457956,87.647,87.621,0.04728504]
[1770581325922,11.40745134,87.662,87.64,4.00963501]
[1770581325923,1.14457956,87.661,87.64,4.00963501]
[1770581326128,1.14457956,87.661,87.632,0.04754171]
[1770581326632,1.14457956,87.661,87.625,0.04754171]
[1770581326844,1.14457956,87.669,87.65,4.00963501]
[1770581327218,1.14457956,87.667,87.65,4.00963501]
[1770581327538,1.14457956,87.665,87.631,11.41145931]
[1770581327720,1.14457956,87.665,87.65,4.00963501]
[1770581328538,1.14457956,87.665,87.64,4.00963501]
[1770581329933,5.13032502,87.704,87.61,28.53548506]
[1770581329934,1.14457956,87.663,87.61,28.53548506]
[1770581330144,1.14457956,87.659,87.62,4.00963501]
[1770581331148,1.14457956,87.659,87.62,15.42251138]
[1770581331731,1.14457956,87.659,87.62,4.00963501]
[1770581332246,1.14457956,87.649,87.61,4.00963501]
[1770581332751,1.14457956,87.649,87.62,4.00963501]
[1770581332946,1.14457956,87.649,87.63,4.00963501]
[1770581333125,1.14457956,87.656,87.64,4.00963501]
[1770581333330,1.14457956,87.656,87.63,4.05889274]
[1770581333649,1.14457956,87.67,87.641,0.04925773]
[1770581333963,1.14457956,87.67,87.621,39.94476209]
[1770581333964,1.14457956,87.694,87.66,4.00963501]
[1770581334244,4.00963501,87.71,87.67,4.00963501]
[1770581334245,12.5479983,87.693,87.67,4.00963501]
[1770581334427,1.14457956,87.692,87.67,4.00963501]
[1770581334634,1.14457956,87.692,87.68,4.00963501]
[1770581334930,1.14457956,87.718,87.68,4.00963501]
[1770581335444,1.14457956,87.718,87.7,4.00963501]
[1770581336024,1.14457956,87.718,87.69,4.00963501]
[1770581336956,1.14457956,87.716,87.68,4.00963501]
[1770581337257,1.14457956,87.709,87.67,4.00963501]
[1770581338746,1.14457956,87.709,87.672,11.40613813]
[1770581339145,1.14457956,87.707,87.68,4.00963501]
[1770581340548,11.40003876,87.719,87.7,4.00963501]
[1770581340733,0.2,87.72,87.7,4.00963501]
[1770581340943,1.14457956,87.719,87.691,0.05084044]
[1770581341343,1.14457956,87.717,87.69,4.00963501]
[1770581341857,11.40016872,87.718,87.643,1.14099243]
[1770581341858,1.14457956,87.709,87.66,4.00963501]
[1770581342268,1.14457956,87.709,87.661,0.05126963]
[1770581342552,1.34457956,87.72,87.7,4.00963501]
[1770581342929,0.2,87.72,87.7,4.00963501]
[1770581343553,0.2,87.72,87.71,4.00963501]
[1770581344936,1.14457956,87.718,87.686,11.40421024]
[1770581346061,1.14457956,87.718,87.69,4.00963501]
[1770581346952,11.40003876,87.719,87.7,4.00963501]
[1770581347146,11.40003876,87.719,87.693,0.0523002]
[1770581347352,11.40003876,87.719,87.7,4.00963501]
[1770581347859,11.40003876,87.719,87.693,0.0523002]
[1770581348160,11.40003876,87.719,87.7,4.00963501]
[1770581348763,12.54461832,87.719,87.7,4.00963501]
[1770581348940,12.54461832,87.719,87.69,4.00963501]
[1770581350065,0.2,87.72,87.7,4.00963501]
[1770581350248,0.2,87.72,87.692,0.05289057]
[1770581350563,0.2,87.72,87.7,4.00963501]
[1770581351965,1.34457956,87.72,87.693,17.4]
[1770581352262,1.34457956,87.72,87.694,11.4032887]
[1770581352562,1.34457956,87.72,87.693,17.4]
[1770581352563,1.14457956,87.718,87.693,17.4]
[1770581353449,1.14457956,87.718,87.68,4.00012966]
[1770581354254,1.14457956,87.716,87.68,4.00012966]
[1770581355164,1.14457956,87.716,87.68,4.05432073]
[1770581355660,1.16670722,87.699,87.674,17.4]
[1770581355863,1.16670722,87.699,87.66,4.05449808]
[1770581356065,1.16670722,87.699,87.67,4.00012966]
[1770581357763,11.40276859,87.698,87.671,11.40628029]
[1770581358264,1.16670722,87.697,87.671,11.40628029]
[1770581358446,1.16670722,87.697,87.67,4.05484669]
[1770581359074,1.16670722,87.697,87.661,17.4]
[1770581359367,1.16670722,87.689,87.643,11.40983046]
[1770581359867,1.16670722,87.687,87.643,11.40983046]
[1770581360370,1.16670722,87.687,87.65,4.00012966]
[1770581361463,1.16670722,87.679,87.64,4.00012966]
[1770581361649,1.16670722,87.679,87.637,11.41060388]
[1770581363578,1.16670722,87.669,87.63,4.00012966]
[1770581363861,1.16670722,87.659,87.62,4.00012966]
[1770581364871,1.16670722,87.657,87.62,4.00012966]
[1770581365166,1.16670722,87.649,87.614,11.4135983]
[1770581365480,1.16670722,87.639,87.601,0.05587565]
[1770581365763,1.16670722,87.65,87.62,4.00012966]
[1770581366074,1.16670722,87.65,87.63,4.00012966]
[1770581366472,1.16670722,87.669,87.64,4.00012966]
[1770581366782,1.16670722,87.668,87.64,4.00012966]
[1770581367272,1.16670722,87.668,87.641,0.05618983]
[1770581367471,12.57350795,87.667,87.64,4.00012966]
[1770581367658,1.16670722,87.666,87.64,4.00012966]
[1770581368273,1.16670722,87.666,87.641,11.41018473]
[1770581369668,1.16670722,87.674,87.65,4.00012966]
[1770581370578,1.16670722,87.674,87.642,0.05649684]
[1770581370789,1.16670722,87.674,87.65,4.00012966]
[1770581371083,1.16670722,87.674,87.651,11.40888295]
[1770581371665,12.5707239,87.689,87.66,4.00012966]
[1770581371890,12.5707239,87.689,87.67,4.00012966]
[1770581372185,1.16670722,87.688,87.644,11.40974644]
[1770581372487,1.16670722,87.688,87.64,21.40012966]
[1770581372488,1.16670722,87.679,87.64,4.00012966]
[1770581373288,1.16670722,87.677,87.64,4.00012966]
[1770581375072,1.16670722,87.675,87.64,10.72341145]
[1770581377382,1.16670722,87.673,87.64,10.72341145]
[1770581380787,1.16670722,87.671,87.64,10.72341145]
[1770581381086,1.16670722,87.659,87.62,10.72341145]
[1770581382281,1.16670722,87.657,87.62,10.72341145]
[1770581384697,1.16670722,87.655,87.61,10.72341145]
[1770581384990,1.16670722,87.655,87.5,45.81418896]
[1770581384991,1.16398697,87.639,87.59,10.78225033]
[1770581385185,1.16398697,87.629,87.59,10.72341145]
[1770581386195,1.16398697,87.609,87.567,0.05896285]
[1770581386780,1.16398697,87.607,87.57,10.72341145]
[1770581387575,1.16398697,87.599,87.561,11.47969502]
[1770581390378,1.16398697,87.597,87.561,11.47969502]
[1770581390776,1.16398697,87.619,87.581,0.05956163]
[1770581391890,1.16398697,87.619,87.59,10.72341145]
[1770581393390,1.16398697,87.619,87.591,11.41669806]
[1770581393593,1.16398697,87.619,87.591,11.47648969]
[1770581397191,12.57612491,87.626,87.6,10.72341145]
[1770581397377,1.16398697,87.625,87.6,10.72341145]
[1770581398687,1.16398697,87.625,87.601,0.0603439]
[1770581400001,1.16398697,87.632,87.601,0.0603439]
[1770581400500,1.16398697,87.632,87.601,11.4757387]
[1770581400702,1.16398697,87.632,87.602,0.06055603]
[1770581401196,10.72341145,87.68,87.621,1.07910817]
[1770581401400,10.72341145,87.68,87.601,11.4153948]
[1770581401401,10.72341145,87.68,87.634,1.07910817]
[1770581401584,10.72341145,87.67,87.634,1.07910817]
[1770581401781,10.72341145,87.66,87.62,10.72341145]
[1770581401980,11.40784175,87.659,87.62,10.72341145]
[1770581402187,10.72341145,87.65,87.61,11.80251962]
[1770581402388,10.72341145,87.65,87.611,1.07910817]
[1770581403201,1.16398697,87.649,87.611,1.07910817]
[1770581403903,1.16398697,87.664,87.631,1.07910817]
[1770581404906,1.16398697,87.664,87.612,39.94886544]
[1770581404907,1.16398697,87.673,87.641,1.07910817]
[1770581405207,10.72341145,87.68,87.641,1.07910817]
[1770581405208,1.16398697,87.671,87.641,1.07910817]
[1770581405712,1.16398697,87.671,87.65,10.72341145]
[1770581406091,11.40615019,87.672,87.65,10.72341145]
[1770581406293,11.40454318,87.685,87.661,1.07910817]
[1770581406616,1.16398697,87.684,87.661,1.07910817]
[1770581406803,11.40386495,87.69,87.67,10.72341145]
[1770581407715,11.40317883,87.695,87.67,11.80251962]
[1770581409014,1.16398697,87.695,87.67,11.80251962]
[1770581410613,11.40133851,87.709,87.681,1.07910817]
[1770581410795,1.16398697,87.708,87.681,1.07910817]
[1770581411416,1.16398697,87.706,87.681,1.07910817]
[1770581411614,1.16398697,87.706,87.671,11.40628029]
[1770581411821,1.16398697,87.706,87.67,10.72341145]
[1770581412318,1.16398697,87.699,87.66,10.72341145]
[1770581413416,1.16398697,87.667,87.62,10.72341145]
[1770581413725,1.16398697,87.649,87.614,11.413701]
[1770581413904,1.16398697,87.649,87.613,1.07910817]
[1770581414113,1.16398697,87.649,87.61,10.72341145]
[1770581414512,1.16398697,87.649,87.61,11.80251962]
[1770581415023,1.16398697,87.649,87.61,5.0850511]
[1770581415221,1.05920814,87.639,87.6,4.00594293]
[1770581416223,1.07613558,87.637,87.6,4.00594293]
[1770581416935,1.07613558,87.637,87.6,10.73389544]
[1770581417626,1.07613558,87.637,87.611,1.01133346]
[1770581417822,1.07613558,87.643,87.61,10.73389544]
[1770581418023,1.07613558,87.643,87.61,1.01133346]
[1770581418928,1.07613558,87.641,87.61,1.01133346]
[1770581422431,12.48527886,87.649,87.612,1.0100992]
[1770581422634,1.07613558,87.639,87.601,1.0100992]
[1770581424016,1.07613558,87.646,87.621,0.98884934]
[1770581425027,11.40966398,87.645,87.621,0.98884934]
[1770581425329,12.48579956,87.645,87.621,0.98884934]
[1770581425628,1.07613558,87.649,87.621,0.98884934]
[1770581427326,11.40838137,87.655,87.623,0.95788112]
[1770581427625,10.73389544,87.67,87.622,11.41265892]
[1770581427626,1.07613558,87.669,87.63,10.73389544]
[1770581427816,1.07613558,87.669,87.622,11.41265892]
[1770581428136,1.07613558,87.669,87.63,10.73389544]
[1770581429234,11.40667062,87.668,87.63,10.73389544]
[1770581429438,1.07613558,87.667,87.63,10.73389544]
[1770581429812,1.07613558,87.667,87.64,10.73389544]